Workbook

Sheet Sheet1
A1: Tax Year | B1: Form | C1: Tax Due | D1: Filed | E1: Filing Status | F1: NFTL | G1: Estimated CSED | N1: SSN Provided: | O1: 318-46-2908 | Q1: SSN Provided: | R1: 318-46-2908 | T1: SSN Provided: | U1: 318-46-2908 | W1: SSN Provided: | X1: 318-46-2908 | AA1: 2017 | AE1: 2018 | AI1: 2019 | AM1: 2020
A2: 2018 | B2: 1040 | C2: 4705 | D2: Yes | E2: Single | F2: Yes | G2: 11/28/2029* | N2: Tax Period Requested: | O2: December, 2017 | Q2: Tax Period Requested: | R2: December, 2018 | T2: Tax Period Requested: | U2: December, 2019 | W2: Tax Period Requested: | X2: December, 2020 | AA2: ACCOUNT BALANCE: | AB2: 8288.04 | AE2: ACCOUNT BALANCE: | AF2: 2978.75 | AI2: ACCOUNT BALANCE: | AJ2: 2154.03 | AM2: ACCOUNT BALANCE: | AN2: 670.7
A3: 2019 | B3: 1040 | C3: 3205 | D3: Yes | E3: Single | F3: Yes | G3: 2030-11-05 | AA3: ACCRUED INTEREST: | AB3: 2817.69 | AE3: ACCRUED INTEREST: | AF3: 1019.47 | AI3: ACCRUED INTEREST: | AJ3: 571.9 | AM3: ACCRUED INTEREST: | AN3: 155.93
A4: 2020 | B4: 1040 | C4: 827 | D4: Yes | E4: Single | F4: Yes | G4: 2031-09-23 | N4: Form 5498 Individual Retirement Arrangement Contribution Information | Q4: Form 5498 Individual Retirement Arrangement Contribution Information | T4: Form 5498 Individual Retirement Arrangement Contribution Information | W4: Form 5498 Individual Retirement Arrangement Contribution Information | AA4: ACCRUED PENALTY: | AB4: 1634.65 | AE4: ACCRUED PENALTY: | AF4: 707.06 | AI4: ACCRUED PENALTY: | AJ4: 478.57 | AM4: ACCRUED PENALTY: | AN4: 0
AA5: ADJUSTED GROSS INCOME: | AB5: 142337 | AE5: ADJUSTED GROSS INCOME: | AF5: 42664 | AI5: ADJUSTED GROSS INCOME: | AJ5: 63635 | AM5: ADJUSTED GROSS INCOME: | AN5: 46207
AA6: TAXABLE INCOME: | AB6: 124895 | AE6: TAXABLE INCOME: | AF6: 28942 | AI6: TAXABLE INCOME: | AJ6: 51435 | AM6: TAXABLE INCOME: | AN6: 33807
N7: Trustee: | Q7: Trustee: | T7: Trustee: | W7: Trustee: | AA7: TAX PER RETURN: | AB7: 0 | AE7: TAX PER RETURN: | AF7: 923 | AI7: TAX PER RETURN: | AJ7: 7172 | AM7: TAX PER RETURN: | AN7: 3862
A8: Explanation | F8: Code | G8: 2017 | H8: 2018 | I8: 2019 | J8: 2020 | K8: Total | N8: Trustee/Issuer's Federal Identification Number (FIN):314156830 | Q8: Trustee/Issuer's Federal Identification Number (FIN):411366075 | T8: Trustee/Issuer's Federal Identification Number (FIN):411366075 | W8: Trustee/Issuer's Federal Identification Number (FIN):411366075 | AA8: SE TAXABLE INCOME TAXPAYER: | AB8: 0 | AE8: SE TAXABLE INCOME TAXPAYER: | AF8: 0 | AI8: SE TAXABLE INCOME TAXPAYER: | AJ8: 0 | AM8: SE TAXABLE INCOME TAXPAYER: | AN8: 0
A9: Return Filed & Tax Liability Assessed | F9: 150 | G9: 0 | H9: 923 | I9: 7172 | J9: 3862 | K9: 11957 | N9: NATIONWIDE LIFE INSURANCE COMPANY | Q9: ALLIANZ LIFE INSURANCE COMPANY | T9: ALLIANZ LIFE INSURANCE COMPANY | W9: ALLIANZ LIFE INSURANCE COMPANY | AA9: SE TAXABLE INCOME SPOUSE: | AB9: 0 | AE9: SE TAXABLE INCOME SPOUSE: | AF9: 0 | AI9: SE TAXABLE INCOME SPOUSE: | AJ9: 0 | AM9: SE TAXABLE INCOME SPOUSE: | AN9: 0
A10: Add'l Tax Assessment | F10: 290 | G10: 27952 | H10: 2358 | I10: 0 | J10: 0 | K10: 30310 | N10: P O BOX 182021 | Q10: 5701 GOLDEN HILLS DRIVE | T10: 5701 GOLDEN HILLS DRIVE | W10: 5701 GOLDEN HILLS DRIVE | AA10: TOTAL SELF EMPLOYMENT TAX: | AB10: 0 | AE10: TOTAL SELF EMPLOYMENT TAX: | AF10: 0 | AI10: TOTAL SELF EMPLOYMENT TAX: | AJ10: 0 | AM10: TOTAL SELF EMPLOYMENT TAX: | AN10: 0
A11: Interest Assessed | F11: 196 | G11: 1432.04 | H11: 4.36 | I11: 5.76 | J11: 2.7 | K11: 1444.86 | N11: COLUMBUS, OH 43218-2021 | Q11: MINNEAPOLIS, MN 55416-0000 | T11: MINNEAPOLIS, MN 55416-0000 | W11: MINNEAPOLIS, MN 55416-0000 | AA11: 150 | AB11: 0 | AC11: Return Filed & Tax Liability Assessed | AE11: 150 | AF11: 923 | AG11: Return Filed & Tax Liability Assessed | AI11: 150 | AJ11: 7172 | AK11: Return Filed & Tax Liability Assessed | AM11: 150 | AN11: 3862 | AO11: Return Filed & Tax Liability Assessed
A12: Failure to Pay Tax Penalty | F12: 276 | G12: 0 | H12: 5.39 | I12: 21.27 | J12: 0 | K12: 26.66 | AA12: 290 | AB12: 27952 | AC12: Additional Tax Assessment | AE12: 290 | AF12: 2358 | AG12: Additional Tax Assessment | AI12: 290 | AJ12: 0 | AK12: Additional Tax Assessment | AM12: 290 | AN12: 0 | AO12: Additional Tax Assessment
A13: Overpayment from other Tax Module | F13: 706 | G13: -3557 | H13: 0 | I13: 0 | J13: 0 | K13: -3557 | N13: Participant: | Q13: Participant: | T13: Participant: | W13: Participant: | AA13: 300 | AB13: 0 | AC13: Additional Tax Assessment by Examination or Appeals. | AE13: 300 | AF13: 0 | AG13: Additional Tax Assessment by Examination or Appeals. | AI13: 300 | AJ13: 0 | AK13: Additional Tax Assessment by Examination or Appeals. | AM13: 300 | AN13: 0 | AO13: Additional Tax Assessment by Examination or Appeals.
A14: Subsequent Payment | F14: 670 | G14: -157 | H14: 0 | I14: 0 | J14: 0 | K14: -157 | N14: Participant's Identification Number: 318-46-2908 | Q14: Participant's Identification Number: 318-46-2908 | T14: Participant's Identification Number: 318-46-2908 | W14: Participant's Identification Number: 318-46-2908 | AA14: 166 | AB14: 0 | AC14: Delinquency Penalty | AE14: 166 | AF14: 0 | AG14: Delinquency Penalty | AI14: 166 | AJ14: 0 | AK14: Delinquency Penalty | AM14: 166 | AN14: 0 | AO14: Delinquency Penalty
A15: Assessment of Misc. Civil Penalty | F15: 240 | G15: 1762 | H15: 0 | I15: 0 | J15: 0 | K15: 1762 | N15: JAMES ALAN KARTHOLL | Q15: JAMES A KARTHOLL | T15: JAMES A KARTHOLL | W15: JAMES A KARTHOLL | AA15: 176 | AB15: 0 | AC15: Estimated Tax Penalty | AE15: 176 | AF15: 0 | AG15: Estimated Tax Penalty | AI15: 176 | AJ15: 0 | AK15: Estimated Tax Penalty | AM15: 176 | AN15: 0 | AO15: Estimated Tax Penalty
A16: Credit for Withheld Tax and Excess FICA | F16: 806 | G16: -19144 | H16: -384 | I16: -5045 | J16: -3194 | K16: -27767 | N16: 435 FOREST TRL | Q16: 435 FOREST TRL | T16: 435 FOREST TRL | W16: 435 FOREST TRL | AA16: 196 | AB16: 1432.04 | AC16: Interest Assessed | AE16: 196 | AF16: 4.36 | AG16: Interest Assessed | AI16: 196 | AJ16: 5.76 | AK16: Interest Assessed | AM16: 196 | AN16: 2.7 | AO16: Interest Assessed
A17: Correction of 670 Processed In Error | F17: 672 | G17: 43 | H17: 2200 | I17: 0 | J17: 0 | K17: 2243 | N17: OAK BROOK, IL 60523-0000 | Q17: OAK BROOK, IL 60523-0000 | T17: OAK BROOK, IL 60523-0000 | W17: OAK BROOK, IL 60523-0000 | AA17: 276 | AB17: 0 | AC17: Failure to Pay Tax Penalty | AE17: 276 | AF17: 5.39 | AG17: Failure to Pay Tax Penalty | AI17: 276 | AJ17: 21.27 | AK17: Failure to Pay Tax Penalty | AM17: 276 | AN17: 0 | AO17: Failure to Pay Tax Penalty
A18: Fees and Collection Costs | F18: 360 | H18: 72 | I18: 0 | J18: 0 | K18: 72 | AA18: 706 | AB18: -3557 | AC18: Generated Overpayment Applied from Another Tax Module | AE18: 706 | AF18: 0 | AG18: Generated Overpayment Applied from Another Tax Module | AI18: 706 | AJ18: 0 | AK18: Generated Overpayment Applied from Another Tax Module | AM18: 706 | AN18: 0 | AO18: Generated Overpayment Applied from Another Tax Module
E19: Assessed | G19: 8331.04 | H19: 2978.75 | I19: 2154.03 | J19: 670.7 | K19: =SUM(G19:J19) -> 14134.52 | AA19: 670 | AB19: -157 | AC19: Subsequent Payment | AE19: 670 | AF19: 0 | AG19: Subsequent Payment | AI19: 670 | AJ19: 0 | AK19: Subsequent Payment | AM19: 670 | AN19: 0 | AO19: Subsequent Payment
E20: Interest | G20: 2818 | H20: 1019 | I20: 572 | J20: 156 | K20: 4565 | N20: Submission Type: | O20: Original document | Q20: Submission Type: | R20: Original document | T20: Submission Type: | U20: Original document | W20: Submission Type: | X20: Original document | AA20: 240 | AB20: 1762 | AC20: Assessment of Miscellaneous Civil Penalty | AE20: 240 | AF20: 0 | AG20: Assessment of Miscellaneous Civil Penalty | AI20: 240 | AJ20: 0 | AK20: Assessment of Miscellaneous Civil Penalty | AM20: 240 | AN20: 0 | AO20: Assessment of Miscellaneous Civil Penalty
E21: Penalties | G21: 1635 | H21: 707 | I21: 479 | K21: 2821 | N21: Account Number (Optional): | O21: 017527975 A | Q21: Account Number (Optional): | R21: 71543391-I | T21: Account Number (Optional): | U21: 71543391-I | W21: Account Number (Optional): | X21: 71543391-I | AA21: 806 | AB21: -19144 | AC21: Credit for Withheld Taxes and Excess FICA | AE21: 806 | AF21: -384 | AG21: Credit for Withheld Taxes and Excess FICA | AI21: 806 | AJ21: -5045 | AK21: Credit for Withheld Taxes and Excess FICA | AM21: 806 | AN21: -3194 | AO21: Credit for Withheld Taxes and Excess FICA
E22: Total | G22: 12784.04 | H22: 4704.75 | I22: 3205.03 | J22: 826.7 | K22: 21520.52 | N22: IRA Contributions: | O22: 0 | Q22: IRA Contributions: | R22: 0 | T22: IRA Contributions: | U22: 0 | W22: IRA Contributions: | X22: 0 | AA22: 672 | AB22: 43 | AC22: Correction of 670 Processed In Error | AE22: 672 | AF22: 2200 | AG22: Correction of 670 Processed In Error | AI22: 672 | AJ22: 0 | AK22: Correction of 670 Processed In Error | AM22: 672 | AN22: 0 | AO22: Correction of 670 Processed In Error
N23: Rollover Contributions: | O23: 0 | Q23: Rollover Contributions: | R23: 0 | T23: Rollover Contributions: | U23: 0 | W23: Rollover Contributions: | X23: 0 | AE23: 673 | AF23: -2200 | AG23: Input of a TC 672 Changes an existing TC 670 to TC 673. | AI23: 673 | AJ23: 0 | AK23: Input of a TC 672 Changes an existing TC 670 to TC 673. | AM23: 673 | AN23: 0 | AO23: Input of a TC 672 Changes an existing TC 670 to TC 673.
N24: Roth Conversion Amount: | O24: 0 | Q24: Roth Conversion Amount: | R24: 0 | T24: Roth Conversion Amount: | U24: 0 | W24: Roth Conversion Amount: | X24: 0 | AE24: 360 | AF24: 72 | AG24: Fees and Collection Costs | AI24: 360 | AJ24: 0 | AK24: Fees and Collection Costs | AM24: 360 | AN24: 0 | AO24: Fees and Collection Costs
N25: Recharacterized Contributions: | O25: 0 | Q25: Recharacterized Contributions: | R25: 0 | T25: Recharacterized Contributions: | U25: 0 | W25: Recharacterized Contributions: | X25: 0
B26: 150 | C26: =_xlfn.XLOOKUP(B26,$F$9:$F$18,$K$9:$K$18) -> 11957 | N26: Fair Market Value of Account: | O26: 62557 | Q26: Fair Market Value of Account: | R26: 59842 | T26: Fair Market Value of Account: | U26: 48373 | W26: Fair Market Value of Account: | X26: 46349 | AF26: =SUM(AF10:AF23) -> 2906.75 | AJ26: =SUM(AJ10:AJ23) -> 2154.03 | AN26: =SUM(AN10:AN23) -> 670.7
B27: 290 | C27: =_xlfn.XLOOKUP(B27,$F$9:$F$18,$K$9:$K$18) -> 30310 | N27: Life Insurance Cost Included in Box 1: | O27: 0 | Q27: Life Insurance Cost Included in Box 1: | R27: 0 | T27: Life Insurance Cost Included in Box 1: | U27: 0 | W27: Life Insurance Cost Included in Box 1: | X27: 0 | AB27: =SUM(AB11:AB24) -> 8331.04
B28: Tax | C28: =SUM(C26:C27) -> 42267 | N28: SEP Code: | O28: Not Checked | Q28: SEP Code: | R28: Not Checked | T28: SEP Code: | U28: Not Checked | W28: SEP Code: | X28: Not Checked
N29: IRA Code: | O29: Checked | Q29: IRA Code: | R29: Checked | T29: IRA Code: | U29: Checked | W29: IRA Code: | X29: Checked
B30: 276 | C30: =_xlfn.XLOOKUP(B30,$F$9:$F$18,$K$9:$K$18) -> 26.66 | I30: Total tax of | J30: 42267 | N30: Simple Code: | O30: Not Checked | Q30: Simple Code: | R30: Not Checked | T30: Simple Code: | U30: Not Checked | W30: Simple Code: | X30: Not Checked
B31: 240 | C31: =_xlfn.XLOOKUP(B31,$F$9:$F$18,$K$9:$K$18) -> 1762 | I31: Penalties | J31: 1860.66 | N31: Roth IRA Code: | O31: Not Checked | Q31: Roth IRA Code: | R31: Not Checked | T31: Roth IRA Code: | U31: Not Checked | W31: Roth IRA Code: | X31: Not Checked
B32: 360 | C32: =_xlfn.XLOOKUP(B32,$F$9:$F$18,$K$9:$K$18) -> 72 | I32: Interest | J32: 1444.86 | N32: RMD For Subsequent Year: | O32: RMD box not checked | Q32: RMD For Subsequent Year: | R32: RMD box not checked | T32: RMD For Subsequent Year: | U32: RMD box not checked | W32: RMD For Subsequent Year: | X32: RMD box not checked | AA32: Interest | AB32: =SUM(AB3,AB16) -> 4249.73 | AE32: Interest | AF32: =SUM(AF3,AF16) -> 1023.83 | AI32: Interest | AJ32: =SUM(AJ3,AJ16) -> 577.66 | AM32: Interest | AN32: =SUM(AN3,AN16) -> 158.63
C33: =_xlfn.IFNA(_xlfn.XLOOKUP(B33,$F$9:$F$18,$K$9:$K$18),0) -> 0 | I33: Credits of | J33: -31481 | N33: RMD Date: | O33: 00-00-0000 | Q33: RMD Date: | R33: 00-00-0000 | T33: RMD Date: | U33: 00-00-0000 | W33: RMD Date: | X33: 00-00-0000 | AA33: FTF, FTP penalties | AB33: =SUM(AB4,) -> 1634.65 | AE33: FTF, FTP penalties | AF33: =SUM(AF4,AF17) -> 712.45 | AI33: FTF, FTP penalties | AJ33: =SUM(AJ4,AJ17) -> 499.84 | AM33: FTF, FTP penalties | AN33: =SUM(AN4) -> 0
C34: =_xlfn.IFNA(_xlfn.XLOOKUP(B34,$F$9:$F$18,$K$9:$K$18),0) -> 0 | J34: =SUM(J30:J33) -> 14091.52 | N34: Year: | Q34: Year: | T34: Year: | W34: Year: | AA34: Accuracy Related Penalty | AB34: =SUM(AB20) -> 1762 | AE34: Accuracy Related Penalty | AI34: Accuracy Related Penalty | AM34: Accuracy Related Penalty
B35: Pen | C35: =SUM(C29:C34) -> 1860.66 | E35: =SUM(A35:D35) -> 1860.66 | F35: =SUM(C35:E35) -> 3721.32 | N35: Postponed Contribution Code: | Q35: Postponed Contribution Code: | T35: Postponed Contribution Code: | W35: Postponed Contribution Code:
I36: Accrued Pen | J36: 2821 | N36: Repayments Code: | Q36: Repayments Code: | T36: Repayments Code: | W36: Repayments Code:
B37: 196 | C37: =_xlfn.XLOOKUP(B37,$F$9:$F$18,$K$9:$K$18) -> 1444.86 | I37: Accrued Int | J37: 4565 | N37: Fair Market Value of certain specified assets: | O37: N/A | Q37: Fair Market Value of certain specified assets: | R37: N/A | T37: Fair Market Value of certain specified assets: | U37: N/A | W37: Fair Market Value of certain specified assets: | X37: N/A
B38: Int | C38: =C37 -> 1444.86 | E38: 4656 | F38: =SUM(C38:E38) -> 6100.86 | J38: =SUM(J34:J37) -> 21477.52 | N38: SEP Contributions: | O38: 0 | Q38: SEP Contributions: | R38: 0 | T38: SEP Contributions: | U38: 0 | W38: SEP Contributions: | X38: 0
B39: 706 | C39: =_xlfn.XLOOKUP(B39,$F$9:$F$18,$K$9:$K$18) -> -3557 | N39: SIMPLE Contributions: | O39: 0 | Q39: SIMPLE Contributions: | R39: 0 | T39: SIMPLE Contributions: | U39: 0 | W39: SIMPLE Contributions: | X39: 0
B40: 670 | C40: =_xlfn.XLOOKUP(B40,$F$9:$F$18,$K$9:$K$18) -> -157 | N40: Roth IRA Contributions: | O40: 0 | Q40: Roth IRA Contributions: | R40: 0 | T40: Roth IRA Contributions: | U40: 0 | W40: Roth IRA Contributions: | X40: 0
B41: 806 | C41: =_xlfn.XLOOKUP(B41,$F$9:$F$18,$K$9:$K$18) -> -27767 | N41: Required Minimum Distribution Amount: | O41: 0 | Q41: Required Minimum Distribution Amount: | R41: 0 | T41: Required Minimum Distribution Amount: | U41: 0 | W41: Required Minimum Distribution Amount: | X41: 0
B42: Cred | C42: =SUM(C39:C41) -> -31481 | N42: Postponed Contributions: | O42: 0 | Q42: Postponed Contributions: | R42: 0 | T42: Postponed Contributions: | U42: 0 | W42: Postponed Contributions: | X42: 0
N43: Repayment of a qualified reservist distribution or federally designated disaster withdrawal repayment: | O43: 0 | Q43: Repayment of a qualified reservist distribution or federally designated disaster withdrawal repayment: | R43: 0 | T43: Repayment of a qualified reservist distribution or federally designated disaster withdrawal repayment: | U43: 0 | W43: Repayment of a qualified reservist distribution or federally designated disaster withdrawal repayment: | X43: 0
N44: Fair Market Value of Certain Specified Assets: | O44: 0 | Q44: Fair Market Value of Certain Specified Assets: | R44: 0 | T44: Fair Market Value of Certain Specified Assets: | U44: 0 | W44: Fair Market Value of Certain Specified Assets: | X44: 0
A45: Payer | G45: 2017 | H45: 2018 | I45: 2019 | J45: 2020
A46: Nationwide Life 017527975 A | E46: FMV of Acct. | G46: 62557 | H46: 0 | I46: 0 | J46: 0 | N46: Form SSA-1099 Benefits Statement | Q46: Form SSA-1099 Benefits Statement | T46: Form SSA-1099 Benefits Statement | W46: Form SSA-1099 Benefits Statement
A47: Allianz Life 71543391-I | E47: FMV of Acct. | G47: 0 | H47: 59842 | I47: 48373 | J47: 46349
A48: Allianz Life 71543391 | E48: FMV of Acct. | G48: 0 | H48: 0 | I48: 15000 | J48: 4444
A49: Social Security | E49: Benefits Paid | G49: 27684 | H49: 28236 | I49: 29022 | J49: 29491 | N49: Payer: | Q49: Payer: | T49: Payer: | W49: Payer:
A50: Electrical Contractors/Local 134 | E50: Gross Dist. | G50: 17262 | H50: 15934 | I50: 15934 | J50: 17262 | N50: Payer's Federal Identification Number (FIN):526004813 | Q50: Payer's Federal Identification Number (FIN):526004813 | T50: Payer's Federal Identification Number (FIN):526004813 | W50: Payer's Federal Identification Number (FIN):526004813
E51: Tax Withheld | G51: 0 | H51: 0 | I51: 1495 | J51: 2150 | N51: SOCIAL SECURITY ADMINISTRATION | Q51: SOCIAL SECURITY ADMINISTRATION | T51: SOCIAL SECURITY ADMINISTRATION | W51: SOCIAL SECURITY ADMINISTRATION
A52: Pershing, LLC | E52: Gross Dist. | G52: 0 | H52: 3844 | I52: 0 | J52: 0
E53: Tax Withheld | G53: 0 | H53: 384 | I53: 0 | J53: 0 | N53: Payee: | Q53: Payee: | T53: Payee: | W53: Payee:
A54: National Electrical Benefit Fund | E54: Gross Dist. | G54: 101543 | H54: 9984 | I54: 9984 | J54: 9984 | N54: Payee's Identification Number: 318-46-2908 | Q54: Payee's Identification Number: 318-46-2908 | T54: Payee's Identification Number: 318-46-2908 | W54: Payee's Identification Number: 318-46-2908
E55: Tax Withheld | G55: 19143 | H55: 0 | I55: 550 | J55: 600 | N55: JAMES A KARTHOLL | Q55: JAMES A KARTHOLL | T55: JAMES A KARTHOLL | W55: JAMES A KARTHOLL
N56: 435 FOREST TRAIL DRIVE | Q56: 435 FOREST TRAIL DRIVE | T56: 435 FOREST TRAIL DRIVE | W56: 435 FOREST TRAIL DRIVE
G57: =SUM(G50,G54)+0.5*G49 -> 132647 | N57: OAK BROOK, IL 60523-0000 | Q57: OAK BROOK, IL 60523-0000 | T57: OAK BROOK, IL 60523-0000 | W57: OAK BROOK, IL 60523-0000
G58: 10400
G59: 0.28
G60: 7018.25 | N60: Submission Type: | O60: Original document | Q60: Submission Type: | R60: Original document | T60: Submission Type: | U60: Original document | W60: Submission Type: | X60: Original document
N61: Account Number (Optional): | O61: N/A | Q61: Account Number (Optional): | R61: N/A | T61: Account Number (Optional): | U61: N/A | W61: Account Number (Optional): | X61: N/A
G62: =((G57-G58)*0.28)-G60 -> 27210.91 | N62: Pensions and Annuities (Total Benefits Paid): | O62: 27684 | Q62: Pensions and Annuities (Total Benefits Paid): | R62: 28236 | T62: Pensions and Annuities (Total Benefits Paid): | U62: 29022 | W62: Pensions and Annuities (Total Benefits Paid): | X62: 29491
N63: Tax Withheld: | O63: 0 | Q63: Tax Withheld: | R63: 0 | T63: Tax Withheld: | U63: 0 | W63: Tax Withheld: | X63: 0
N64: Repayments: | O64: 0 | Q64: Repayments: | R64: 0 | T64: Repayments: | U64: 0 | W64: Repayments: | X64: 0
N65: Workman's Compensation Offset: | O65: 0 | Q65: Workman's Compensation Offset: | R65: 0 | T65: Workman's Compensation Offset: | U65: 0 | W65: Workman's Compensation Offset: | X65: 0
N66: TY 2016 Payments: | O66: 0 | Q66: TY 2017 Payments: | R66: 0 | T66: TY 2018 Payments: | U66: 0 | W66: TY 2019 Payments: | X66: 0
N67: TY 2015 Payments: | O67: 0 | Q67: TY 2016 Payments: | R67: 0 | T67: TY 2017 Payments: | U67: 0 | W67: TY 2018 Payments: | X67: 0
N68: TY 2014 Payments: | O68: 0 | Q68: TY 2015 Payments: | R68: 0 | T68: TY 2016 Payments: | U68: 0 | W68: TY 2017 Payments: | X68: 0
N69: TY 2013 Payments: | O69: 0 | Q69: TY 2014 Payments: | R69: 0 | T69: TY 2015 Payments: | U69: 0 | W69: TY 2016 Payments: | X69: 0
N70: Trust Fund Indicator: | O70: Disability | Q70: Trust Fund Indicator: | R70: Disability | T70: Trust Fund Indicator: | U70: Disability | W70: Trust Fund Indicator: | X70: Disability
N71: SSA/RRB Payments: | O71: Either RRB or SSA payments | Q71: SSA/RRB Payments: | R71: Either RRB or SSA payments | T71: SSA/RRB Payments: | U71: Either RRB or SSA payments | W71: SSA/RRB Payments: | X71: Either RRB or SSA payments
N73: Form 1099-R Distributions from Pensions, Annuities, Retire or Profit-Sharing Plans, IRAs, Insurance Contracts, etc. | Q73: Form 1099-R Distributions from Pensions, Annuities, Retire or Profit-Sharing Plans, IRAs, Insurance Contracts, etc. | T73: Form 1099-R Distributions from Pensions, Annuities, Retire or Profit-Sharing Plans, IRAs, Insurance Contracts, etc. | W73: Form 1099-R Distributions from Pensions, Annuities, Retire or Profit-Sharing Plans, IRAs, Insurance Contracts, etc.
N76: Payer: | Q76: Payer: | T76: Payer: | W76: Payer:
N77: Payer's Federal Identification Number (FIN):366153685 | Q77: Payer's Federal Identification Number (FIN):133718556 | T77: Payer's Federal Identification Number (FIN):366153685 | W77: Payer's Federal Identification Number (FIN):366153685
N78: ELECTRICAL CONTRACTORS & LOCAL 134 | Q78: PERSHING LLC | T78: ELECTRICAL CONTRACTORS & LOCAL 134 | W78: ELECTRICAL CONTRACTORS & LOCAL 134
N79: 221 NORTH LASALLE STREET SUITE 200 | Q79: ONE PERSHING PLAZA | T79: 221 NORTH LASALLE STREET - SUITE 200 | W79: 221 NORTH LASALLE STREET - SUITE 200
N80: CHICAGO, IL 60601-1214 | Q80: JERSEY CITY, NJ 07399-0000 | T80: CHICAGO, IL 60601-1214 | W80: CHICAGO, IL 60601-1214
N82: Recipient: | Q82: Recipient: | T82: Recipient: | W82: Recipient:
N83: Recipient's Identification Number: 318-46-2908 | Q83: Recipient's Identification Number: 318-46-2908 | T83: Recipient's Identification Number: 318-46-2908 | W83: Recipient's Identification Number: 318-46-2908
N84: JAMES KARTHOLL | Q84: JAMES ALAN KARTHOLL | T84: JAMES KARTHOLL | W84: JAMES KARTHOLL
N85: 435 FOREST TRAIL DR | Q85: 435 FOREST TRL | T85: 435 FOREST TRAIL DR | W85: 435 FOREST TRAIL DR
N86: OAK BROOK, IL 60523-1417 | Q86: OAK BROOK, IL 60523-1417 | T86: OAK BROOK, IL 60523-1417 | W86: OAK BROOK, IL 60523-1417
N89: Submission Type: | O89: Original document | Q89: Submission Type: | R89: Original document | T89: Submission Type: | U89: Original document | W89: Submission Type: | X89: Original document
N90: Account Number (Optional): | O90: 249 | Q90: Account Number (Optional): | R90: 66J254822 | T90: Account Number (Optional): | U90: 233 | W90: Account Number (Optional): | X90: 242
N91: Distribution Code Value: | O91: Disability | Q91: Distribution Code Value: | R91: Normal distribution | T91: Distribution Code Value: | U91: Disability | W91: Distribution Code Value: | X91: Disability
N92: Distribution Code: | O92: 3 | Q92: Distribution Code: | R92: 7 | T92: Distribution Code: | U92: 3 | W92: Distribution Code: | X92: 3
N93: Distribution Code Value: | O93: Not significant | Q93: Distribution Code Value: | R93: Not significant | T93: Distribution Code Value: | U93: Not significant | W93: Distribution Code Value: | X93: Not significant
N94: Distribution Code: | O94: Blank | Q94: Distribution Code: | R94: Blank | T94: Distribution Code: | U94: Blank | W94: Distribution Code: | X94: Blank
N95: Tax Amount Undetermined Code: | O95: Not checked | Q95: Tax Amount Undetermined Code: | R95: Tax amount not determined | T95: Tax Amount Undetermined Code: | U95: Not checked | W95: Tax Amount Undetermined Code: | X95: Not checked
N96: Total Distribution Code: | O96: Not checked | Q96: Total Distribution Code: | R96: Not checked | T96: Total Distribution Code: | U96: Not checked | W96: Total Distribution Code: | X96: Not checked
N97: First Year Roth Contribution: | O97: 0 | Q97: First Year Roth Contribution: | R97: 0 | T97: First Year Roth Contribution: | U97: 0 | W97: First Year Roth Contribution: | X97: 0
N98: SEP Indicator: | O98: IRA/SEP/SIMP box not checked | Q98: SEP Indicator: | R98: IRA/SEP/SIMP box checked | T98: SEP Indicator: | U98: IRA/SEP/SIMP box not checked | W98: SEP Indicator: | X98: IRA/SEP/SIMP box not checked
N99: FATCA Indicator: | O99: not FATCA | Q99: FATCA Indicator: | R99: not FATCA | T99: FATCA Indicator: | U99: not FATCA | W99: FATCA Indicator: | X99: not FATCA
N100: Tax Withheld: | O100: 0 | Q100: Date of Payment for Reportable Death Benefits under Section 6050Y: | R100: 00-00-0000 | T100: Date of Payment for Reportable Death Benefits under Section 6050Y: | U100: 00-00-0000 | W100: Date of Payment for Reportable Death Benefits under Section 6050Y: | X100: 00-00-0000
N101: Total Employee Contributions: | O101: 0 | Q101: Tax Withheld: | R101: 384 | T101: Tax Withheld: | U101: 1495 | W101: Tax Withheld: | X101: 2150
N102: Unrealized Appreciation: | O102: 0 | Q102: Total Employee Contributions: | R102: 0 | T102: Total Employee Contributions: | U102: 0 | W102: Total Employee Contributions: | X102: 0
N103: Other Income: | O103: 0 | Q103: Unrealized Appreciation: | R103: 0 | T103: Unrealized Appreciation: | U103: 0 | W103: Unrealized Appreciation: | X103: 0
N104: Gross Distribution: | O104: 17262 | Q104: Other Income: | R104: 0 | T104: Other Income: | U104: 0 | W104: Other Income: | X104: 0
N105: Taxable Amount: | O105: 17262 | Q105: Gross Distribution: | R105: 3844 | T105: Gross Distribution: | U105: 15934 | W105: Gross Distribution: | X105: 17262
N106: Eligible Capital Gains: | O106: 0 | Q106: Taxable Amount: | R106: 3844 | T106: Taxable Amount: | U106: 15934 | W106: Taxable Amount: | X106: 17262
N107: Amount to IRR: | O107: 0 | Q107: Eligible Capital Gains: | R107: 0 | T107: Eligible Capital Gains: | U107: 0 | W107: Eligible Capital Gains: | X107: 0
Q108: Amount to IRR: | R108: 0 | T108: Amount to IRR: | U108: 0 | W108: Amount to IRR: | X108: 0
N109: Form 1099-R Distributions from Pensions, Annuities, Retire or Profit-Sharing Plans, IRAs, Insurance Contracts, etc.
Q110: Form 1099-R Distributions from Pensions, Annuities, Retire or Profit-Sharing Plans, IRAs, Insurance Contracts, etc. | T110: Form 1099-R Distributions from Pensions, Annuities, Retire or Profit-Sharing Plans, IRAs, Insurance Contracts, etc. | W110: Form 1099-R Distributions from Pensions, Annuities, Retire or Profit-Sharing Plans, IRAs, Insurance Contracts, etc.
N112: Payer:
N113: Payer's Federal Identification Number (FIN):521146054 | Q113: Payer: | T113: Payer: | W113: Payer:
N114: NATIONAL ELECTRICAL BENEFIT FUND | Q114: Payer's Federal Identification Number (FIN):366153685 | T114: Payer's Federal Identification Number (FIN):411366075 | W114: Payer's Federal Identification Number (FIN):411366075
N115: 2400 RESEARCH BOULEVARD SUITE 500 | Q115: ELECTRICAL CONTRACTORS & LOCAL 134 | T115: ALLIANZ LIFE INSURANCE COMPANY | W115: ALLIANZ LIFE INSURANCE COMPANY
N116: ROCKVILLE, MD 20850-3266 | Q116: 221 NORTH LASALLE STREET - SUITE 200 | T116: 5701 GOLDEN HILLS DRIVE | W116: 5701 GOLDEN HILLS DRIVE
Q117: CHICAGO, IL 60601-1214 | T117: MINNEAPOLIS, MN 55416-0000 | W117: MINNEAPOLIS, MN 55416-0000
N118: Recipient:
N119: Recipient's Identification Number: 318-46-2908 | Q119: Recipient: | T119: Recipient: | W119: Recipient:
N120: JAMES A KARTHOLL | Q120: Recipient's Identification Number: 318-46-2908 | T120: Recipient's Identification Number: 318-46-2908 | W120: Recipient's Identification Number: 318-46-2908
N121: 435 FOREST TRAIL DRIVE | Q121: JAMES KARTHOLL | T121: JAMES A KARTHOLL | W121: JAMES A KARTHOLL
N122: OAK BROOK, IL 60523-0000 | Q122: 435 FOREST TRAIL DR | T122: 435 FOREST TRL | W122: 435 FOREST TRL
Q123: OAK BROOK, IL 60523-1417 | T123: OAK BROOK, IL 60523-0000 | W123: OAK BROOK, IL 60523-0000
N125: Submission Type: | O125: Original document
N126: Account Number (Optional): | O126: 2017N062834132443 | Q126: Submission Type: | R126: Original document | T126: Submission Type: | U126: Original document | W126: Submission Type: | X126: Original document
N127: Distribution Code Value: | O127: Disability | Q127: Account Number (Optional): | R127: 244 | T127: Account Number (Optional): | U127: 71543391 | W127: Account Number (Optional): | X127: 71543391
N128: Distribution Code: | O128: 3 | Q128: Distribution Code Value: | R128: Disability | T128: Distribution Code Value: | U128: Normal distribution | W128: Distribution Code Value: | X128: Normal distribution
N129: Distribution Code Value: | O129: Not significant | Q129: Distribution Code: | R129: 3 | T129: Distribution Code: | U129: 7 | W129: Distribution Code: | X129: 7
N130: Distribution Code: | O130: Blank | Q130: Distribution Code Value: | R130: Not significant | T130: Distribution Code Value: | U130: Not significant | W130: Distribution Code Value: | X130: Not significant
N131: Tax Amount Undetermined Code: | O131: Not checked | Q131: Distribution Code: | R131: Blank | T131: Distribution Code: | U131: Blank | W131: Distribution Code: | X131: Blank
N132: Total Distribution Code: | O132: Not checked | Q132: Tax Amount Undetermined Code: | R132: Not checked | T132: Tax Amount Undetermined Code: | U132: Tax amount not determined | W132: Tax Amount Undetermined Code: | X132: Tax amount not determined
N133: First Year Roth Contribution: | O133: 0 | Q133: Total Distribution Code: | R133: Not checked | T133: Total Distribution Code: | U133: Not checked | W133: Total Distribution Code: | X133: Not checked
N134: SEP Indicator: | O134: IRA/SEP/SIMP box not checked | Q134: First Year Roth Contribution: | R134: 0 | T134: First Year Roth Contribution: | U134: 0 | W134: First Year Roth Contribution: | X134: 0
N135: FATCA Indicator: | O135: not FATCA | Q135: SEP Indicator: | R135: IRA/SEP/SIMP box not checked | T135: SEP Indicator: | U135: IRA/SEP/SIMP box checked | W135: SEP Indicator: | X135: IRA/SEP/SIMP box checked
N136: Tax Withheld: | O136: 19143 | Q136: FATCA Indicator: | R136: not FATCA | T136: FATCA Indicator: | U136: not FATCA | W136: FATCA Indicator: | X136: not FATCA
N137: Total Employee Contributions: | O137: 0 | Q137: Date of Payment for Reportable Death Benefits under Section 6050Y: | R137: 00-00-0000 | T137: Date of Payment for Reportable Death Benefits under Section 6050Y: | U137: 00-00-0000 | W137: Date of Payment for Reportable Death Benefits under Section 6050Y: | X137: 00-00-0000
N138: Unrealized Appreciation: | O138: 0 | Q138: Tax Withheld: | R138: 0 | T138: Tax Withheld: | U138: 3000 | W138: Tax Withheld: | X138: 444
N139: Other Income: | O139: 0 | Q139: Total Employee Contributions: | R139: 0 | T139: Total Employee Contributions: | U139: 0 | W139: Total Employee Contributions: | X139: 0
N140: Gross Distribution: | O140: 101543 | Q140: Unrealized Appreciation: | R140: 0 | T140: Unrealized Appreciation: | U140: 0 | W140: Unrealized Appreciation: | X140: 0
N141: Taxable Amount: | O141: 101543 | Q141: Other Income: | R141: 0 | T141: Other Income: | U141: 0 | W141: Other Income: | X141: 0
N142: Eligible Capital Gains: | O142: 0 | Q142: Gross Distribution: | R142: 15934 | T142: Gross Distribution: | U142: 15000 | W142: Gross Distribution: | X142: 4444
N143: Amount to IRR: | O143: 0 | Q143: Taxable Amount: | R143: 15934 | T143: Taxable Amount: | U143: 15000 | W143: Taxable Amount: | X143: 4444
N144: This Product Contains Sensitive Taxpayer Data | Q144: Eligible Capital Gains: | R144: 0 | T144: Eligible Capital Gains: | U144: 0 | W144: Eligible Capital Gains: | X144: 0
Q145: Amount to IRR: | R145: 0 | T145: Amount to IRR: | U145: 0 | W145: Amount to IRR: | X145: 0
Q147: Form 1099-R Distributions from Pensions, Annuities, Retire or Profit-Sharing Plans, IRAs, Insurance Contracts, etc. | T147: Form 1099-R Distributions from Pensions, Annuities, Retire or Profit-Sharing Plans, IRAs, Insurance Contracts, etc. | W147: Form 1099-R Distributions from Pensions, Annuities, Retire or Profit-Sharing Plans, IRAs, Insurance Contracts, etc.
Q150: Payer: | T150: Payer: | W150: Payer:
Q151: Payer's Federal Identification Number (FIN):521146054 | T151: Payer's Federal Identification Number (FIN):521146054 | W151: Payer's Federal Identification Number (FIN):521146054
Q152: NATIONAL ELECTRICAL BENEFIT FUND | T152: NATIONAL ELECTRICAL BENEFIT FUND | W152: NATIONAL ELECTRICAL BENEFIT FUND
Q153: 2400 RESEARCH BOULEVARD, SUITE 500 | T153: 2400 RESEARCH BOULEVARD, SUITE 500 | W153: 2400 RESEARCH BOULEVARD, SUITE 500
Q154: ROCKVILLE, MD 20850-3266 | T154: ROCKVILLE, MD 20850-3266 | W154: ROCKVILLE, MD 20850-3266
Q156: Recipient: | T156: Recipient: | W156: Recipient:
Q157: Recipient's Identification Number: 318-46-2908 | T157: Recipient's Identification Number: 318-46-2908 | W157: Recipient's Identification Number: 318-46-2908
Q158: JAMES A KARTHOLL | T158: JAMES A KARTHOLL | W158: JAMES A KARTHOLL
Q159: 435 FOREST TRAIL DRIVE | T159: 435 FOREST TRAIL DRIVE | W159: 435 FOREST TRAIL DRIVE
Q160: OAK BROOK, IL 60523-0000 | T160: OAK BROOK, IL 60523-0000 | W160: OAK BROOK, IL 60523-0000
A161: Form 1099-R Distributions from Pensions, Annuities, Retire or Profit-Sharing Plans, IRAs, Insurance Contracts, etc. | G161: Distribution | H161: 9984 | I161: 9984 | J161: 9984
G162: Tax Withheld | I162: 550 | J162: 600
Q163: Submission Type: | R163: Original document | T163: Submission Type: | U163: Original document | W163: Submission Type: | X163: Original document
Q164: Account Number (Optional): | R164: 2018N064560181927 | T164: Account Number (Optional): | U164: 2019N066122147133 | W164: Account Number (Optional): | X164: 2020N067783147724
Q165: Distribution Code Value: | R165: Disability | T165: Distribution Code Value: | U165: Disability | W165: Distribution Code Value: | X165: Disability
Q166: Distribution Code: | R166: 3 | T166: Distribution Code: | U166: 3 | W166: Distribution Code: | X166: 3
Q167: Distribution Code Value: | R167: Not significant | T167: Distribution Code Value: | U167: Not significant | W167: Distribution Code Value: | X167: Not significant
Q168: Distribution Code: | R168: Blank | T168: Distribution Code: | U168: Blank | W168: Distribution Code: | X168: Blank
Q169: Tax Amount Undetermined Code: | R169: Not checked | T169: Tax Amount Undetermined Code: | U169: Not checked | W169: Tax Amount Undetermined Code: | X169: Not checked
Q170: Total Distribution Code: | R170: Not checked | T170: Total Distribution Code: | U170: Not checked | W170: Total Distribution Code: | X170: Not checked
Q171: First Year Roth Contribution: | R171: 0 | T171: First Year Roth Contribution: | U171: 0 | W171: First Year Roth Contribution: | X171: 0
Q172: SEP Indicator: | R172: IRA/SEP/SIMP box not checked | T172: SEP Indicator: | U172: IRA/SEP/SIMP box not checked | W172: SEP Indicator: | X172: IRA/SEP/SIMP box not checked
Q173: FATCA Indicator: | R173: not FATCA | T173: FATCA Indicator: | U173: not FATCA | W173: FATCA Indicator: | X173: not FATCA
Q174: Date of Payment for Reportable Death Benefits under Section 6050Y: | R174: 00-00-0000 | T174: Date of Payment for Reportable Death Benefits under Section 6050Y: | U174: 00-00-0000 | W174: Date of Payment for Reportable Death Benefits under Section 6050Y: | X174: 00-00-0000
Q175: Tax Withheld: | R175: 0 | T175: Tax Withheld: | U175: 550 | W175: Tax Withheld: | X175: 600
Q176: Total Employee Contributions: | R176: 0 | T176: Total Employee Contributions: | U176: 0 | W176: Total Employee Contributions: | X176: 0
Q177: Unrealized Appreciation: | R177: 0 | T177: Unrealized Appreciation: | U177: 0 | W177: Unrealized Appreciation: | X177: 0
Q178: Other Income: | R178: 0 | T178: Other Income: | U178: 0 | W178: Other Income: | X178: 0
Q179: Gross Distribution: | R179: 9984 | T179: Gross Distribution: | U179: 9984 | W179: Gross Distribution: | X179: 9984
Q180: Taxable Amount: | R180: 9984 | T180: Taxable Amount: | U180: 9984 | W180: Taxable Amount: | X180: 9984
Q181: Eligible Capital Gains: | R181: 0 | T181: Eligible Capital Gains: | U181: 0 | W181: Eligible Capital Gains: | X181: 0
Q182: Amount to IRR: | R182: 0 | T182: Amount to IRR: | U182: 0 | W182: Amount to IRR: | X182: 0
Q183: This Product Contains Sensitive Taxpayer Data

Sheet Sheet4
B7: Payer | D7: 2017 | E7: 2018 | F7: 2019 | G7: 2020
B8: Nationwide Life 017527975 A | C8: FMV of Account | D8: 62557 | E8: 0 | F8: 0 | G8: 0
B9: Allianz Life 71543391-I | C9: FMV of Account | D9: 0 | E9: 59842 | F9: 48373 | G9: 46349
B10: Allianz Life 71543391 | C10: FMV of Account | D10: 0 | E10: 0 | F10: 15000 | G10: 4444
B11: Social Security | C11: Benefits Paid | D11: 27684 | E11: 28236 | F11: 29022 | G11: 29491
B12: Electrical Contractors & Local 134 | C12: Gross Dist. | D12: 17262 | E12: 15934 | F12: 15934 | G12: 17262
C13: Tax Withheld | D13: 0 | E13: 0 | F13: 1495 | G13: 2150
B14: Pershing, LLC | C14: Gross Dist. | D14: 0 | E14: 3844 | F14: 0 | G14: 0
C15: Tax Withheld | D15: 0 | E15: 384 | F15: 0 | G15: 0
B16: National Electrical Benefit Fund | C16: Gross Dist. | D16: 101543 | E16: 9984 | F16: 9984 | G16: 9984
C17: Tax Withheld | D17: 19143 | E17: 0 | F17: 550 | G17: 600

Sheet Sheet2
J1: 2019 | M1: XLOOKUP(J11,'I:\dcTaxFiles\dc Tax, LLC\My RO Files\Macros\Macros\TransactionCodes.xlsm'!TransCodeTbl[Trans Code],'I:\dcTaxFiles\dc Tax, LLC\My RO Files\Macros\Macros\TransactionCodes.xlsm'!TransCodeTbl[Title])
A2: FORM NUMBER: | B2: 1040 | J2: ACCOUNT BALANCE: | K2: =_xlfn.XLOOKUP(J2,A:A,C:C) -> 2154.03
A3: TAX PERIOD: | B3: Dec. 31, 2019 | J3: ACCRUED INTEREST: | K3: 571.9
J4: ACCRUED PENALTY: | K4: 478.57
A5: TAXPAYER IDENTIFICATION NUMBER: | B5: XXX-XX-2908 | J5: ADJUSTED GROSS INCOME: | K5: 63635
J6: TAXABLE INCOME: | K6: 51435
A7: JAME A KART | J7: TAX PER RETURN: | K7: 7172
A8: <<<<POWER OF ATTORNEY/TAX INFORMATION AUTHORIZATION (POA/TIA) ON FILE>>>> | J8: SE TAXABLE INCOME TAXPAYER: | K8: 0
A9: --- ANY MINUS SIGN SHOWN BELOW SIGNIFIES A CREDIT AMOUNT --- | J9: SE TAXABLE INCOME SPOUSE: | K9: 0
J10: TOTAL SELF EMPLOYMENT TAX: | K10: 0
A11: ACCOUNT BALANCE: | C11: 2154.03 | J11: 150 | K11: =SUMIF($A$2:$A$296,J11,$H$2:$H$296) -> 7172 | L11: Return Filed & Tax Liability Assessed
A12: ACCRUED INTEREST: | C12: 571.9 | D12: AS OF: | E12: Dec. 16, 2024 | J12: 290 | K12: 0 | L12: Additional Tax Assessment
A13: ACCRUED PENALTY: | C13: 478.57 | D13: AS OF: | E13: Dec. 16, 2024 | J13: 300 | K13: 0 | L13: Additional Tax Assessment by Examination or Appeals.
J14: 166 | K14: 0 | L14: Delinquency Penalty
A15: ACCOUNT BALANCE PLUS ACCRUALS | C15: 3204.5 | J15: 176 | K15: 0 | L15: Estimated Tax Penalty
A16: (this is not a payoff amount): | J16: 196 | K16: 5.76 | L16: Interest Assessed
J17: 276 | K17: 21.27 | L17: Failure to Pay Tax Penalty
A18: ** INFORMATION FROM THE RETURN OR AS ADJUSTED ** | J18: 706 | K18: 0 | L18: Generated Overpayment Applied from Another Tax Module
J19: 670 | K19: 0 | L19: Subsequent Payment
A20: EXEMPTIONS: | C20: 1 | J20: 240 | K20: 0 | L20: Assessment of Miscellaneous Civil Penalty
A21: FILING STATUS: | C21: Single | J21: 806 | K21: -5045 | L21: Credit for Withheld Taxes and Excess FICA
A22: ADJUSTED GROSS INCOME: | C22: 63635 | J22: 672 | K22: 0 | L22: Correction of 670 Processed In Error
A23: TAXABLE INCOME: | C23: 51435 | J23: 673 | K23: 0 | L23: Input of a TC 672 Changes an existing TC 670 to TC 673.
A24: TAX PER RETURN: | C24: 7172 | J24: 360 | K24: 0 | L24: Fees and Collection Costs
A25: SE TAXABLE INCOME TAXPAYER: | C25: 0
A26: SE TAXABLE INCOME SPOUSE: | C26: 0
A27: TOTAL SELF EMPLOYMENT TAX: | C27: 0
A29: RETURN DUE DATE OR RETURN RECEIVED DATE (WHICHEVER IS LATER) | H29: Apr. 15, 2020
A30: PROCESSING DATE | H30: Aug. 17, 2020 | K30: =SUM(K11:K24) -> 2154.03
A32: TRANSACTIONS
A33: CODE | B33: EXPLANATION OF TRANSACTION | F33: CYCLE | G33: DATE | H33: AMOUNT
A35: 150 | B35: Tax return filed | F35: 20200805 | G35: 2020-08-17 | H35: 7172
A36: n/a | B36: 70211-444-24942-0
A37: 806 | B37: W-2 or 1099 withholding | G37: 2020-04-15 | H37: -5045
A38: 276 | B38: Penalty for late payment of tax | F38: 20203105 | G38: 2020-08-17 | H38: 21.27
A39: 196 | B39: Interest charged for late payment | F39: 20203105 | G39: 2020-08-17 | H39: 5.76
A40: 971 | B40: Notice issued | G40: 2020-08-17 | H40: 0
B41: CP 0014
A42: 971 | B42: Installment agreement established | G42: 2020-08-17 | H42: 0
A43: 960 | B43: Appointed representative | G43: 2020-10-26 | H43: 0
A44: 971 | B44: Tax period blocked from automated levy program | G44: 2022-05-16 | H44: 0
A45: 971 | B45: No longer in installment agreement status | G45: 2022-05-09 | H45: 0
A46: 480 | B46: Received offer in compromise | G46: 2024-07-03 | H46: 0
A47: 960 | B47: Appointed representative | G47: 2024-08-21 | H47: 0
A48: 481 | B48: Offer in Compromise rejected or returned | G48: 2024-08-22 | H48: 0
A49: 582 | B49: Lien placed on assets due to balance owed | G49: 2024-10-04 | H49: 0
A50: 530 | B50: Balance due account currently not collectible - not due to hardship | G50: 2024-10-07 | H50: 0
A51: 971 | B51: Issued notice of lien filing and right to Collection Due Process hearing | G51: 2024-10-10 | H51: 0
A52: This Product Contains Sensitive Taxpayer Data
H56: =SUM(H35:H51) -> 2154.03

Sheet Sheet3
A1: Explanation | B1: Code | C1: 2017 | D1: 2018 | E1: 2019 | F1: 2020
A2: Return Filed & Tax Liability Assessed | B2: 150 | C2: 0 | D2: 923 | E2: 7172 | F2: 3862
A3: Additional Tax Assessment | B3: 290 | C3: 27952 | D3: 2358 | E3: 0 | F3: 0
A4: Additional Tax Assessment by Examination or Appeals. | B4: 300 | C4: 0 | D4: 0 | E4: 0 | F4: 0
A5: Delinquency Penalty | B5: 166 | C5: 0 | D5: 0 | E5: 0 | F5: 0
A6: Estimated Tax Penalty | B6: 176 | C6: 0 | D6: 0 | E6: 0 | F6: 0
A7: Interest Assessed | B7: 196 | C7: 1432.04 | D7: 4.36 | E7: 5.76 | F7: 2.7
A8: Failure to Pay Tax Penalty | B8: 276 | C8: 0 | D8: 5.39 | E8: 21.27 | F8: 0
A9: Generated Overpayment Applied from Another Tax Module | B9: 706 | C9: -3557 | D9: 0 | E9: 0 | F9: 0
A10: Subsequent Payment | B10: 670 | C10: -157 | D10: 0 | E10: 0 | F10: 0
A11: Assessment of Miscellaneous Civil Penalty | B11: 240 | C11: 1762 | D11: 0 | E11: 0 | F11: 0
A12: Credit for Withheld Taxes and Excess FICA | B12: 806 | C12: -19144 | D12: -384 | E12: -5045 | F12: -3194
A13: Correction of 670 Processed In Error | B13: 672 | C13: 43 | D13: 2200 | E13: 0 | F13: 0
A14: Input of a TC 672 Changes an existing TC 670 to TC 673. | B14: 673 | D14: -2200 | E14: 0 | F14: 0
A15: Fees and Collection Costs | B15: 360 | D15: 72 | E15: 0 | F15: 0
B17: Assessed | C17: =SUM(C2:C15) -> 8331.04 | D17: =SUM(D2:D15) -> 2978.75 | E17: =SUM(E2:E15) -> 2154.03 | F17: 670.7
B18: Interest | C18: 2818 | D18: 1019 | E18: 572 | F18: 156
B19: Penalties | C19: 1635 | D19: 707 | E19: 479
B20: Total | C20: =SUM(C17:C19) -> 12784.04 | D20: 4704.75 | E20: 3205.03 | F20: =SUM(F17:F19) -> 826.7
